bitfinex-derivatives/quotes_ETHF0:USTF0_20250507
["timestamp","ask_amount","ask_price","bid_price","bid_amount"]
[1746641944961,1.11012,1801.4,1801.2,4.31796]
[1746641945159,7.1859,1801.3,1801.2,4.31796]
[1746641945367,8.29604,1801.3,1801.2,4.31796]
[1746641945559,7.1859,1801.3,1801.2,4.31796]
[1746641945755,7.1859,1801.3,1801.2,1.1102]
[1746641946264,8.2477,1801.6,1801.4,1.11006]
[1746641946459,8.29594,1801.5,1801.4,1.11006]
[1746641946764,7.1859,1801.5,1801.4,1.11006]
[1746641946965,10.7859,1801.7,1801.6,1.10995]
[1746641947165,8.29579,1801.7,1801.6,1.10995]
[1746641947862,1.11002,1801.5,1801.4,1.11003]
[1746641948066,1.11003,1801.5,1801.4,1.11003]
[1746641948267,11.89582,1801.7,1801.6,1.10995]
[1746641948466,1.10995,1801.6,1801.5,8.74047]
[1746641948663,8.09825,1801.6,1801.5,8.74047]
[1746641948867,6.9883,1801.6,1801.5,8.74047]
[1746641949462,8.09825,1801.6,1801.5,7.6305]
[1746641949759,6.9883,1801.6,1801.5,1.11001]
[1746641949959,8.0983,1801.6,1801.5,1.11001]
[1746641950159,11.6983,1801.6,1801.5,1.11001]
[1746641950365,11.69825,1801.6,1801.5,1.11001]
[1746641950567,24.35431,1801.6,1801.2,3.2078]
[1746641950765,1.11018,1801.3,1801.2,1.11018]
[1746641950965,4.9217,1801.5,1801.0,10.40629]
[1746641951165,8.29138,1801.3,1801.2,1.11017]
[1746641951368,7.1812,1801.3,1801.2,1.11017]
[1746641951566,1.1102,1801.2,1801.1,3.2078]
[1746641951766,1.11032,1801.0,1800.9,4.31815]
[1746641952168,8.29151,1801.1,1801.0,1.11032]
[1746641952366,7.1812,1801.1,1801.0,8.17332]
[1746641952670,8.29146,1801.1,1801.0,8.17332]
[1746641952865,7.1812,1801.1,1801.0,8.17332]
[1746641953573,8.29146,1801.1,1801.0,8.17332]
[1746641953975,8.29146,1801.1,1801.0,7.063]
[1746641954168,1.11032,1801.0,1800.9,4.31814]
[1746641954663,7.1812,1801.1,1801.0,1.11032]
[1746641954965,4.9217,1801.5,1801.1,2.77554]
[1746641955169,6.03175,1801.5,1801.4,1.11008]
[1746641955362,1.1101,1801.4,1801.3,1.11009]
[1746641955568,8.02771,1801.6,1801.5,1.11001]
[1746641956069,1.11003,1801.5,1801.4,1.11003]
[1746641956275,1.11011,1801.4,1801.3,1.1101]
[1746641956573,6.9177,1801.4,1801.3,1.1101]
[1746641957677,8.02778,1801.4,1801.3,1.1101]
[1746641957970,6.9177,1801.4,1801.3,1.1101]
[1746641958175,8.1971,1801.6,1801.5,1.10997]
[1746641958379,4.9049,1801.8,1801.7,1.10989]
[1746641958568,6.01477,1801.8,1801.7,1.10989]
[1746641959375,1.10989,1801.7,1801.6,8.42872]
[1746641959674,7.0871,1801.7,1801.6,8.42872]
[1746641960072,1.10974,1802.0,1801.9,1.10972]
[1746641960273,1.10983,1801.9,1801.8,1.10982]
[1746641960573,8.75044,1802.0,1801.9,1.10977]
[1746641960769,7.6407,1802.0,1801.9,1.10977]
[1746641960969,10.73976192,1802.1,1802.0,1.10971]
[1746641961170,10.73976192,1802.1,1802.0,8.60961]
[1746641961362,10.73976192,1802.1,1802.0,13.60961]
[1746641961568,25.44187192,1802.5,1802.4,1.10946]
[1746641961768,19.48987192,1802.5,1802.4,1.10946]
[1746641961969,18.38046192,1802.5,1802.4,1.10946]
[1746641962278,10.73976192,1802.5,1802.4,1.10946]
[1746641962468,6.79878546,1802.5,1802.4,13.60936]
[1746641962777,1.78009546,1802.5,1802.4,18.70716]
[1746641963072,10.97525481,1802.6,1802.5,1.1094]
[1746641963271,7.76858481,1802.6,1802.5,22.6441]
[1746641963468,7.76858481,1802.6,1802.5,27.6441]
[1746641963671,5.46306481,1802.6,1802.5,27.6441]
[1746641963977,3.42020481,1802.6,1802.5,27.6441]
[1746641964168,4.81e-06,1802.6,1802.5,27.6441]
[1746641964569,4.81e-06,1802.6,1802.5,68.4441]
[1746641964769,7.0107,1803.3,1803.2,1.10897]
[1746641965071,7.0107,1803.3,1803.1,4.3168]
[1746641965369,7.0107,1803.3,1802.4,5.0978]
[1746641965370,2.77258,1803.1,1802.4,5.0978]
[1746641965672,1.10958,1802.2,1802.1,7.26012567]
[1746641966069,9.70958,1802.2,1802.1,7.26012567]
[1746641966269,9.70958,1802.2,1802.1,8.36976567]
[1746641966466,11.1366,1802.2,1802.1,8.36976567]
[1746641966872,11.1366,1802.2,1802.1,15.72006567]
[1746641967073,11.132,1802.4,1802.3,1.10952]
[1746641967282,12.432,1802.4,1802.3,1.10952]
[1746641967470,7.5366,1802.4,1802.3,1.10952]
[1746641967878,5.949,1802.6,1802.5,1.1094]
[1746641968078,1.10941,1802.5,1802.2,10.5581]
[1746641968379,7.5366,1802.4,1802.1,2.77412]
[1746641968677,7.5366,1802.4,1802.3,1.10952]
[1746641968879,7.5366,1802.6,1802.5,1.10935]
[1746641969080,7.5366,1802.6,1802.4,4.31722]
[1746641969378,1.10948,1802.4,1802.3,1.1095]
[1746641969671,7.5366,1802.6,1802.5,1.1094]
[1746641969870,7.5366,1802.6,1802.4,1.10941]
[1746641970070,7.5366,1802.6,1802.5,1.1094]
[1746641970277,1.10918,1802.9,1802.5,10.2159]
[1746641970980,6.9778,1802.8,1802.7,8.55168]
[1746641971273,5.949,1803.1,1802.5,3.2078]
[1746641971274,3.2078,1802.9,1802.5,3.2078]
[1746641971471,3.2078,1802.9,1802.7,1.10928]
[1746641971671,1.10923,1802.8,1802.7,1.10926]
[1746641971984,1.10923,1802.8,1802.5,3.2078]
[1746641971985,1.10928,1802.7,1802.6,1.1093]
[1746641972173,1.10934,1802.6,1802.5,3.2078]
[1746641972372,1.10934,1802.6,1802.5,4.31716]
[1746641973374,8.48722,1802.7,1802.5,3.2078]
[1746641973680,1.10951,1802.4,1802.3,3.2078]
[1746641973878,5.9815,1802.4,1801.9,3.2078]
[1746641974079,1.1097,1802.1,1802.0,1.10971]
[1746641974279,7.3779,1802.3,1801.8,5.98238]
[1746641974477,1.10962,1802.2,1802.0,3.2078]
[1746641974678,7.3779,1802.1,1802.0,4.31745]
[1746641974879,8.48754,1802.1,1802.0,3.2078]
[1746641975178,12.08754,1802.1,1802.0,3.2078]
[1746641975577,10.9779,1802.1,1802.0,4.31751]
[1746641975772,12.08754,1802.1,1802.0,4.31751]
[1746641976075,12.08754,1802.1,1802.0,3.2078]
[1746641976281,1.10977,1801.9,1801.8,11.45803]
[1746641976578,1.10975,1802.0,1801.9,1.10977]
[1746641976780,1.10971,1802.0,1801.9,8.25017]
[1746641977380,8.48759,1802.1,1801.9,8.25012]
[1746641977584,8.4876,1802.1,1801.9,8.25012]
[1746641977776,7.3779,1802.1,1801.9,8.25012]
[1746641978079,8.48757,1802.1,1801.9,8.25013]
[1746641978380,7.05754,1802.3,1802.2,1.10958]
[1746641978577,3.2078,1802.4,1802.0,3.2078]
[1746641978770,1.10946,1802.4,1802.3,1.10952]
[1746641979174,1.10943,1802.5,1802.4,1.10945]
[1746641979371,1.10952,1802.3,1802.2,1.10954]
[1746641979583,1.10951,1802.4,1802.2,3.2078]
[1746641979783,1.10943,1802.5,1802.4,1.10944]
[1746641980077,1.10962,1802.2,1802.1,1.10963]
[1746641980576,1.10957,1802.3,1802.2,1.10958]
[1746641981184,1.10958,1802.2,1802.1,1.10961]
[1746641981869,1.10958,1802.2,1802.0,3.2078]
[1746641981870,3.6,1802.3,1802.0,3.2078]
[1746641982078,3.6,1802.3,1802.0,5.98206]
[1746641982285,4.70956,1802.3,1802.2,1.10958]
[1746641982779,3.6,1802.3,1802.0,3.2078]
[1746641982988,3.6,1802.3,1801.9,1.10975]
[1746641982989,1.10976,1802.0,1801.9,1.10975]
[1746641983184,8.75527,1802.4,1801.8,5.98237]
[1746641983386,1.10968,1802.1,1802.0,1.10966]
[1746641984087,4.70968,1802.1,1802.0,1.10966]
[1746641984281,1.10971,1802.0,1801.9,1.10977]
[1746641985088,4.7097,1802.1,1802.0,1.10971]
[1746641985289,5.98148,1802.4,1802.1,1.10962]
[1746641985486,1.10967,1802.1,1802.0,1.10966]
[1746641985987,1.10962,1802.2,1802.1,1.10961]
[1746641986186,4.70962,1802.2,1802.1,1.10961]
[1746641986590,3.6,1802.2,1802.1,4.31741]
[1746641986980,4.70958,1802.2,1802.1,4.31741]
[1746641987288,1.10967,1802.1,1802.0,1.10964]
[1746641987479,1.10969,1802.1,1802.0,1.10965]
[1746641987886,3.2078,1802.4,1801.9,3.2078]
[1746641987887,1.10971,1802.0,1801.9,1.10975]
[1746641988488,1.10983,1801.9,1801.8,1.10979]
[1746641988794,1.10983,1801.8,1801.7,11.70393]
[1746641988985,1.10977,1802.0,1801.9,1.10974]
[1746641989183,1.10962,1802.2,1802.1,1.10964]
[1746641989382,7.91643,1802.5,1802.1,3.2078]
[1746641989579,1.10957,1802.3,1802.2,1.10954]
[1746641989801,1.1095,1802.4,1802.3,1.10949]
[1746641990091,1.10946,1802.4,1802.3,4.31727]
[1746641990286,6.25235,1802.5,1802.4,1.10946]
[1746641990488,1.10945,1802.5,1802.4,1.10946]
[1746641990688,1.1094,1802.5,1802.4,8.54435]
[1746641990986,8.4342,1802.6,1802.3,2.77381]
[1746641991294,3.2078,1803.1,1802.9,1.10909]
[1746641991485,5.1617,1803.2,1803.0,1.10908]
[1746641991790,1.1091,1803.0,1802.9,1.10912]
[1746641991995,4.8415,1803.4,1802.8,13.4156]
[1746641992192,1.10898,1803.2,1803.1,1.109]
[1746641992394,10.0032,1803.4,1803.0,3.2078]
[1746641992586,10.0032,1803.4,1803.1,7.4349]
[1746641992884,11.11209,1803.4,1803.1,7.4349]
[1746641993081,10.0032,1803.4,1803.2,1.10897]
[1746641993287,17.57486423,1803.5,1803.1,7.4349]
[1746641993490,1.10886,1803.4,1803.3,1.10888]
[1746641993691,4.31663,1803.5,1803.3,1.10888]
[1746641993889,1.10883,1803.5,1803.3,1.10886]
[1746641994190,1.10888,1803.4,1803.2,4.31675]
[1746641994389,3.6,1803.5,1803.2,3.2078]
[1746641994584,4.7088,1803.5,1803.2,3.2078]
[1746641994792,4.7088,1803.5,1803.3,7.4942]
[1746641994983,1.10884,1803.4,1803.3,7.4942]
[1746641995587,1.10891,1803.3,1803.0,9.37609]
[1746641995789,8.75531,1803.3,1803.1,7.4942]
[1746641996185,7.6464,1803.3,1803.1,7.4942]
[1746641996390,7.6464,1803.3,1803.0,3.2078]
[1746641996590,1.10903,1803.1,1803.0,3.2078]
[1746641996790,1.1091,1803.0,1802.8,10.2434]
[1746641997094,1.1091,1803.0,1802.8,3.2078]
[1746641997300,3.6,1803.1,1802.9,7.0356]
[1746641997588,1.10915,1802.9,1802.8,3.2078]
[1746641997992,8.41392,1803.0,1802.8,3.2078]
[1746641998196,3.6,1802.9,1802.8,4.31698]
[1746641998388,3.6,1802.9,1802.8,3.2078]
[1746641998890,3.6,1802.9,1802.8,10.2434]
[1746641999091,7.3048,1803.0,1802.8,10.2434]
[1746641999289,1.10915,1802.9,1802.8,3.2078]
[1746642000094,3.6,1802.9,1802.8,3.2078]
[1746642000296,4.70915,1802.9,1802.8,3.2078]
[1746642000999,6.37297,1802.9,1802.4,10.22424]
[1746642001296,3.6,1802.9,1802.6,3.2078]
[1746642001498,3.6,1802.9,1802.4,5.907]
[1746642001499,3.6,1802.9,1802.8,3.2078]
[1746642001693,4.70915,1802.9,1802.8,3.2078]
[1746642001892,1.10921,1802.8,1802.7,7.0917]
[1746642002093,8.31901,1802.8,1802.7,7.0917]
[1746642002401,1.10919,1802.9,1802.7,11.40876]
[1746642002785,7.2613,1803.0,1802.7,10.2995]
[1746642002991,5.295,1803.2,1802.9,3.2078]
[1746642003294,5.295,1803.2,1803.0,7.3947]
[1746642003295,1.10903,1803.1,1803.0,7.3947]
[1746642003495,8.37032,1803.2,1803.0,7.3947]
[1746642003691,7.2613,1803.2,1803.0,8.50376]
[1746642003901,8.3703,1803.2,1803.0,8.50376]
[1746642004295,8.67896,1803.6,1803.1,3.2078]
[1746642004598,1.10893,1803.3,1803.2,7.3947]
[1746642004803,1.10897,1803.2,1803.1,3.2078]
[1746642004997,1.10897,1803.2,1803.1,4.31683]
[1746642005195,1.10897,1803.2,1803.1,3.2078]
[1746642005596,12.80578,1803.4,1802.8,9.1138]
[1746642005597,1.10915,1802.9,1802.8,9.1138]
[1746642005797,2.77246,1803.2,1802.8,4.31698]
[1746642005998,5.98004,1803.4,1802.8,10.6807]
[1746642006204,1.10903,1803.1,1803.0,3.2078]
[1746642006598,3.6,1803.2,1803.0,3.2078]
[1746642006801,4.70898,1803.2,1803.1,7.4729]
[1746642006996,4.70898,1803.2,1803.1,8.58193]
[1746642007191,1.10897,1803.2,1803.1,7.4729]
[1746642007800,1.10903,1803.1,1803.0,3.2078]
[1746642008099,1.10902,1803.2,1803.1,1.10902]
[1746642008298,1.10902,1803.2,1803.1,1.10903]
[1746642008299,3.6,1803.2,1803.1,1.10903]
[1746642008504,4.70897,1803.2,1803.1,1.10903]
[1746642008803,3.6,1803.2,1803.1,1.10903]
[1746642009004,4.70897,1803.2,1803.1,1.10903]
[1746642009205,1.10897,1803.2,1803.1,1.10903]
[1746642009505,1.10894,1803.3,1803.2,1.10893]
[1746642009701,1.10906,1803.1,1803.0,4.31686]
[1746642010001,1.10906,1803.1,1803.0,3.2078]
[1746642010206,8.20142,1803.2,1803.0,3.2078]
[1746642010398,1.10893,1803.4,1803.1,2.77256]
[1746642010598,1.10893,1803.3,1803.2,4.31672]
[1746642010793,1.10893,1803.3,1803.2,3.2078]
[1746642010995,1.10893,1803.3,1803.2,4.31677]
[1746642011401,1.10891,1803.3,1803.2,4.31669]
[1746642011606,5.0789,1803.7,1803.3,2.77227]
[1746642011912,1.10881,1803.5,1803.4,1.10878]
[1746642012106,1.10874,1803.6,1803.5,1.10872]
[1746642012307,1.10864,1803.8,1803.7,1.10862]
[1746642012608,8.73639,1803.9,1803.8,1.1086]
[1746642012809,1.10864,1803.8,1803.7,4.31642]
[1746642013103,7.6278,1803.9,1803.8,1.1086]
[1746642013104,8.73638,1803.9,1803.8,1.1086]
[1746642013410,8.73637,1803.9,1803.8,1.1086]
[1746642014111,1.10857,1803.9,1803.8,1.1086]
[1746642014507,1.1086,1803.8,1803.7,3.2078]
[1746642014810,13.17005,1804.1,1803.7,3.2078]
[1746642014811,1.10853,1804.0,1803.9,1.10851]
[1746642015007,7.5353,1804.0,1803.7,3.2078]
[1746642015215,2.77166,1803.7,1803.3,9.1138]
[1746642015516,1.10884,1803.5,1803.4,1.10882]
[1746642015806,1.10878,1803.5,1803.4,40.8]
[1746642016011,1.10884,1803.4,1803.3,1.10886]
[1746642016209,8.64414,1803.4,1803.3,4.31666]
[1746642016413,4.70882,1803.5,1803.4,1.10884]
[1746642016611,1.10884,1803.4,1803.3,4.31668]
[1746642016913,4.70883,1803.5,1803.4,1.10884]
[1746642017414,7.5353,1803.6,1803.5,1.10878]
[1746642017614,8.64402,1803.6,1803.5,4.31658]
[1746642017913,6.37295,1803.8,1803.7,1.10866]
[1746642018116,8.5679,1803.8,1803.7,4.31646]
[1746642018415,7.4593,1803.8,1803.7,4.31646]
[1746642018608,8.5679,1803.8,1803.7,4.31646]
[1746642018810,13.59479,1804.1,1803.8,1.10856]
[1746642019004,1.1086,1803.8,1803.7,4.31641]
[1746642019207,1.1086,1803.8,1803.7,1.10861]
[1746642019907,1.10864,1803.8,1803.7,1.10861]
[1746642020107,7.4593,1804.0,1803.9,1.10854]
[1746642020306,8.56778,1804.0,1803.9,3.2078]
[1746642020507,8.56778,1804.0,1803.9,4.31634]
[1746642020709,7.4593,1804.0,1803.9,4.31634]
[1746642021108,8.56778,1804.0,1803.9,4.31634]
[1746642022114,7.4593,1804.0,1803.9,4.31634]
[1746642022315,8.56778,1804.0,1803.9,4.31634]
[1746642025610,8.56778,1804.0,1803.9,3.2078]
[1746642025810,8.56778,1804.0,1803.9,4.31634]
[1746642026009,8.56778,1804.0,1803.9,3.2078]
[1746642026218,12.16778,1804.0,1803.9,4.31634]
[1746642026614,4.70848,1804.0,1803.9,4.31634]
[1746642026817,3.6,1804.0,1803.9,4.31634]
[1746642027214,1.10845,1804.1,1804.0,1.10848]
[1746642027421,8.50129,1804.2,1804.1,1.10841]
[1746642028222,3.6,1804.2,1804.1,4.31621]
[1746642029020,10.64685,1804.8,1804.7,1.10805]
[1746642029319,3.62625,1804.8,1804.7,4.31585]
[1746642030019,3.62625,1804.8,1804.7,11.65455]
[1746642030220,0.02625,1804.8,1804.7,11.65455]
[1746642030422,1.13423,1804.8,1804.7,3.2078]
[1746642030618,1.13423,1804.8,1804.7,4.31585]
[1746642030825,1.13423,1804.8,1804.6,41.90809]
[1746642030826,1.10805,1804.7,1804.6,41.90809]
[1746642031127,1.10811,1804.6,1804.5,3.2078]
[1746642031322,1.10831,1804.3,1804.2,4.31611]
[1746642031818,1.10831,1804.3,1804.2,3.2078]
[1746642032023,1.10841,1804.1,1804.0,50.97625]
[1746642032329,3.6,1804.1,1804.0,45.11628]
[1746642032520,4.70841,1804.1,1804.0,3.2078]
[1746642032718,1.10854,1803.9,1803.8,4.31638]
[1746642032919,1.10854,1803.9,1803.8,3.2078]
[1746642033224,4.70854,1803.9,1803.8,3.2078]
[1746642033419,1.10866,1803.7,1803.6,16.70076894]
[1746642033618,1.10866,1803.7,1803.6,17.80948894]
[1746642033821,1.10866,1803.7,1803.6,21.01728894]
[1746642034026,1.10866,1803.7,1803.6,16.70076894]
[1746642034223,4.70866,1803.7,1803.6,17.80948894]
[1746642034625,3.6,1803.7,1803.6,17.80948894]
[1746642034822,3.6,1803.7,1803.6,29.77438894]
[1746642035125,1.10866,1803.7,1803.6,24.77438894]
[1746642035320,1.10866,1803.7,1803.6,23.66566894]
[1746642035525,1.10866,1803.7,1803.6,17.80948894]
[1746642035729,6.10932,1803.8,1803.7,1.10866]
[1746642035929,13.15742,1803.8,1803.7,4.31646]
[1746642036127,15.6488,1803.8,1803.7,4.31646]
[1746642036526,10.6481,1803.8,1803.7,11.84826]
[1746642036727,11.7567,1803.8,1803.7,10.7396]
[1746642037132,8.1567,1803.8,1803.7,8.64046]
[1746642037331,7.0481,1803.8,1803.7,11.84826]
[1746642037624,4.9006,1804.1,1803.7,16.84826]
[1746642037930,5.97794,1804.7,1804.0,1.10848]
[1746642038134,1.10817,1804.5,1804.4,4.31602]
[1746642038424,1.10831,1804.3,1804.2,1.1083]
[1746642038630,8.15638,1804.4,1804.3,1.10829]
[1746642038940,7.0481,1804.4,1804.3,4.31609]
[1746642039132,8.05713,1804.6,1804.5,1.10811]
[1746642039329,6.949,1804.6,1804.5,4.31591]
[1746642039526,3.2078,1805.2,1804.6,2.77028]
[1746642039721,7.412959,1805.0,1804.9,1.10788]
[1746642039927,6.305099,1805.0,1804.9,4.31568]
[1746642040226,9.905099,1805.0,1804.9,4.31568]
[1746642040633,9.905099,1805.0,1804.9,1.10788]
[1746642040932,9.905099,1805.0,1804.9,4.31568]
[1746642041126,11.012959,1805.0,1804.9,1.10788]
[1746642041328,1.10792,1804.9,1804.8,1.10793]
[1746642041529,4.7079,1805.0,1804.9,1.10792]
[1746642041724,1.10798,1804.8,1804.7,40.8]
[1746642042024,1.10805,1804.7,1804.6,3.2078]
[1746642042221,1.10811,1804.6,1804.5,5.861]
[1746642042533,1.10811,1804.6,1804.5,41.90817]
[1746642042736,1.10825,1804.4,1804.3,1.10826]
[1746642043031,1.10825,1804.4,1804.3,1.10827]
[1746642043032,1.10827,1804.4,1804.3,1.10827]
[1746642043529,1.10829,1804.3,1804.2,3.2078]
[1746642043735,8.48879,1804.3,1804.2,3.2078]
[1746642043931,7.3805,1804.3,1804.1,5.86]
[1746642044131,1.10835,1804.2,1804.1,10.17618]
[1746642044334,12.08879,1804.3,1804.2,1.10835]
[1746642044636,10.9805,1804.3,1804.2,4.31615]
[1746642044836,10.9805,1804.3,1804.2,11.23425]
[1746642045239,7.3805,1804.3,1804.2,11.23425]
[1746642045536,13.2367,1804.7,1804.2,12.89674]
[1746642045732,1.10813,1804.6,1804.4,3.2078]
[1746642045933,8.41425,1804.6,1804.5,1.10816]
[1746642046236,10.9061,1804.6,1804.5,1.10816]
[1746642046640,10.9061,1804.6,1804.5,8.60376]
[1746642046937,12.01421,1804.6,1804.5,8.60376]
[1746642048437,10.9061,1804.6,1804.5,8.60376]
[1746642049238,1.10804,1804.8,1804.5,7.4956]
[1746642049429,8.63974,1804.8,1804.7,3.2078]
[1746642050231,12.23974,1804.8,1804.7,3.2078]
[1746642050429,12.23974,1804.8,1804.7,4.31585]
[1746642050633,12.23974,1804.8,1804.7,3.2078]
[1746642051743,12.23974,1804.8,1804.7,4.31585]
[1746642052441,12.23974,1804.8,1804.7,3.2078]
[1746642053741,1.10811,1804.6,1804.5,4.31595]
[1746642053942,1.10809,1804.7,1804.6,1.10806]
[1746642054142,11.59109,1804.7,1804.6,1.10806]
[1746642054537,10.483,1804.7,1804.6,1.10806]
[1746642054937,11.59105,1804.7,1804.6,1.10806]
[1746642055338,10.483,1804.7,1804.6,1.10806]
[1746642055543,10.483,1804.7,1804.6,8.28786]
[1746642056146,11.59105,1804.7,1804.6,8.28786]
[1746642056345,1.10811,1804.6,1804.5,3.2078]
[1746642056542,7.99111,1804.6,1804.5,4.31592]
[1746642056738,6.883,1804.6,1804.5,4.31592]
[1746642056942,7.99111,1804.6,1804.5,4.31592]
[1746642057139,3.6,1804.6,1804.5,4.31592]
[1746642057342,4.70811,1804.6,1804.5,4.31592]
[1746642057546,3.6,1804.6,1804.5,4.31592]
[1746642057745,3.6,1804.6,1804.5,15.13392]
[1746642057945,6.02e-06,1804.6,1804.5,15.13392]
[1746642058150,1.10775,1805.2,1805.1,1.1078]
[1746642058349,8.19823,1805.3,1805.2,1.10774]
[1746642058645,7.0905,1805.3,1805.2,4.31554]
[1746642058845,8.19818,1805.3,1805.2,4.31554]
[1746642059348,10.6905,1805.3,1805.2,4.31554]
[1746642059536,11.79818,1805.3,1805.2,3.2078]
[1746642060342,16.79818,1805.3,1805.2,3.2078]
[1746642060542,18.45981,1805.3,1804.7,1.108]
[1746642060752,1.10797,1804.9,1804.8,1.10795]
[1746642061050,1.10784,1805.1,1805.0,1.10782]
[1746642061348,8.22634,1805.1,1805.0,4.31562]
[1746642061850,7.1185,1805.1,1805.0,4.31562]
[1746642062053,1.10776,1805.2,1805.1,1.10774]
[1746642062350,1.1078,1805.1,1805.0,3.2078]
[1746642062550,8.2263,1805.1,1805.0,3.2078]
[1746642063144,11.8263,1805.1,1805.0,3.2078]
[1746642063343,16.8263,1805.1,1805.0,3.2078]
[1746642063542,10.7185,1805.1,1804.9,1.10786]
[1746642063852,10.7185,1805.1,1805.0,4.31566]
[1746642064248,7.1185,1805.1,1805.0,4.31566]
[1746642064947,7.1185,1805.1,1805.0,1.10786]
[1746642065148,8.2263,1805.1,1805.0,1.10786]
[1746642065346,7.1185,1805.1,1805.0,4.31566]
[1746642065552,1.10769,1805.3,1805.2,1.10774]
[1746642065752,8.48899,1805.3,1805.2,1.10774]
[1746642066246,1.10779,1805.2,1805.1,1.10776]
[1746642066749,7.509,1805.2,1805.1,1.10776]
[1746642067553,8.61674,1805.2,1805.1,1.10776]
[1746642067849,7.509,1805.2,1805.1,1.10776]
[1746642068351,1.10769,1805.3,1805.2,1.10774]
[1746642068551,1.10769,1805.3,1805.2,4.31554]
[1746642069051,8.61669,1805.3,1805.2,3.2078]
[1746642069251,12.21669,1805.3,1805.2,3.2078]
[1746642069451,12.21669,1805.3,1805.2,4.31554]
[1746642070449,12.21669,1805.3,1805.2,1.10774]
[1746642071053,1.1078,1805.1,1805.0,4.31562]
[1746642071253,5.97745,1805.1,1804.8,3.2078]
[1746642071554,1.10817,1804.6,1804.5,1.10814]
[1746642072254,3.6,1804.6,1804.5,1.10814]
[1746642072751,4.70811,1804.6,1804.4,10.8011]
[1746642072952,7.2792,1804.5,1804.4,4.31598]
[1746642073151,8.38737,1804.5,1804.4,3.2078]
[1746642073546,7.2792,1804.5,1804.4,1.10823]
[1746642073753,1.10827,1804.4,1804.3,1.10826]
[1746642074143,1.10829,1804.3,1804.2,1.10835]
[1746642074343,7.2792,1804.3,1804.2,1.10835]
[1746642074550,7.2792,1804.3,1804.2,4.31615]
[1746642074746,7.2792,1804.3,1804.2,1.10835]
[1746642074955,8.38749,1804.3,1804.2,1.10835]
[1746642075154,1.10835,1804.2,1804.1,4.31617]
[1746642075354,10.8792,1804.3,1803.9,3.2078]
[1746642075659,1.10848,1804.0,1803.9,4.3163]
[1746642075952,1.10848,1804.0,1803.9,3.2078]
[1746642076152,4.70853,1804.0,1803.9,1.10854]
[1746642076453,4.70853,1804.0,1803.9,4.31634]
[1746642076454,3.6,1804.0,1803.9,4.31634]
[1746642076655,3.6,1804.0,1803.9,8.17324]
[1746642076854,3.6,1804.0,1803.8,1.10856]
[1746642077050,1.1086,1803.8,1803.7,3.2078]
[1746642077254,1.10857,1803.9,1803.8,1.10859]
[1746642077457,1.10862,1803.8,1803.7,4.31642]
[1746642077961,3.6,1804.0,1803.9,1.10854]
[1746642078155,7.9581,1804.2,1803.8,8.17324]
[1746642078349,1.10854,1803.9,1803.8,8.17324]
[1746642078558,1.10854,1803.9,1803.8,7.0647]
[1746642078759,5.1872,1804.2,1804.0,1.10846]
[1746642078961,1.10848,1804.0,1803.9,1.10849]
[1746642079164,5.1872,1804.2,1803.9,1.10849]
[1746642079165,5.1872,1804.2,1804.1,1.10841]
[1746642079555,6.29555,1804.2,1804.1,1.10841]
[1746642079751,5.1872,1804.2,1804.1,1.10841]
[1746642080161,9.89555,1804.2,1804.1,1.10841]
[1746642080551,1.10841,1804.1,1804.0,8.29103]
[1746642080757,8.7872,1804.2,1804.1,1.10841]
[1746642080958,3.6,1804.2,1804.1,1.10841]
[1746642081159,1.10829,1804.3,1804.2,1.1083]
[1746642081561,5.0635,1804.4,1804.1,3.2078]
[1746642081758,5.97854,1804.3,1803.8,3.2078]
[1746642081958,1.10854,1803.9,1803.8,4.3164]
[1746642082159,1.10866,1803.7,1803.6,16.70076894]
[1746642082463,1.10866,1803.7,1803.6,17.80948894]
[1746642082664,1.10866,1803.7,1803.6,16.70076894]
[1746642082867,1.10866,1803.7,1803.6,17.80948894]
[1746642083060,6.16526,1803.8,1803.7,1.10866]
[1746642083261,6.16526,1803.8,1803.6,16.70076894]
[1746642083262,1.10866,1803.7,1803.6,16.70076894]
[1746642083468,1.10878,1803.5,1803.4,3.2078]
[1746642083868,1.10875,1803.6,1803.5,1.10875]
[1746642084375,4.70875,1803.6,1803.5,1.10878]
[1746642084662,3.6,1803.6,1803.5,1.10878]
[1746642084867,4.70872,1803.6,1803.5,4.31658]
[1746642085060,3.6,1803.6,1803.5,1.10878]
[1746642085368,3.6,1803.6,1803.5,4.31658]
[1746642085761,3.6,1803.6,1803.5,9.31658]
[1746642085959,3.6,1803.6,1803.5,16.69878]
[1746642086173,5.776,1804.3,1803.5,19.19]
[1746642086372,8.04092,1804.2,1804.1,1.10839]
[1746642086668,1.10841,1804.1,1804.0,4.31625]
[1746642087266,1.10841,1804.1,1804.0,3.2078]
[1746642087673,1.10866,1803.8,1803.7,1.10864]
[1746642087873,2.77149,1803.9,1803.5,7.4932]
[1746642088072,7.99879,1803.7,1803.6,1.10868]
[1746642088368,7.99879,1803.7,1803.4,10.834]
[1746642088369,1.10878,1803.5,1803.4,1.1088]
[1746642088569,7.99881,1803.7,1803.6,1.10872]
[1746642089873,6.8901,1803.7,1803.6,1.10872]
[1746642090069,1.10851,1804.0,1803.6,5.9795]
[1746642090268,6.8901,1804.0,1803.9,1.10849]
[1746642090475,1.10857,1803.9,1803.8,1.10856]